bitfinex/quotes_ETHUSD_20220119
["timestamp","ask_amount","ask_price","bid_price","bid_amount"]
[1642606980978,0.1278,3128.4,3127.5,2.90794651]
[1642606981179,1.0,3128.2,3127.6,0.00397896]
[1642606981378,0.58749,3128.3,3127.6,0.00397896]
[1642606981579,0.1278,3128.1,3127.3,0.00568423]
[1642606981787,0.1278,3128.2,3127.3,0.00568423]
[1642606981978,0.1278,3128.2,3127.1,0.00682108]
[1642606982178,1.3091018,3127.8,3127.2,1.41398279]
[1642606982381,0.4278,3128.4,3127.2,1.41398279]
[1642606982579,0.00113685,3128.5,3127.3,0.00568423]
[1642606982580,0.1278,3128.1,3127.3,0.00568423]
[1642606982780,0.1278,3128.4,3127.3,0.00568423]
[1642606983224,1.44525924,3127.8,3127.3,1.60403423]
[1642606983631,1.44525924,3127.8,3127.4,0.00511581]
[1642606983837,0.1278,3128.4,3127.4,0.00511581]
[1642606984834,1.41637878,3127.7,3127.4,0.00511581]
[1642606985035,0.1278,3128.4,3127.4,0.00511581]
[1642606985634,0.1278,3128.4,3127.5,0.79919]
[1642606985834,0.12893685,3128.5,3127.5,0.79919]
[1642606986036,1.40004296,3127.9,3127.6,0.30397896]
[1642606986334,1.40004296,3127.9,3127.7,0.00341054]
[1642606986735,0.12893685,3128.5,3127.7,1.14255353]
[1642606986980,0.12893685,3128.5,3127.7,1.44255353]
[1642606987178,0.12893685,3128.5,3127.8,0.00284211]
[1642606987777,1.47547286,3128.0,3127.8,0.00284211]
[1642606988982,1.47547286,3128.0,3127.5,0.80373738]
[1642606989189,0.00113685,3128.5,3127.5,0.80373738]
[1642606989190,0.1278,3128.4,3127.5,0.80373738]
[1642606989487,0.00113685,3128.5,3127.5,0.80373738]
[1642606989488,0.00113685,3128.5,3127.6,0.03948512]
[1642606989683,0.00113685,3128.5,3127.6,0.00397896]
[1642606989684,0.1278,3128.4,3127.6,0.00397896]
[1642606989883,0.1278,3128.4,3127.7,0.00341054]
[1642606990083,0.1278,3128.4,3127.5,0.00454738]
[1642606990285,0.1278,3128.4,3127.6,1.36395759]
[1642606990485,0.00113685,3128.5,3127.7,0.01214153]
[1642606990760,0.00113685,3128.5,3127.7,0.01555207]
[1642606990942,0.00113685,3128.5,3127.8,0.00284211]
[1642606991341,0.00113685,3128.5,3127.9,1.39400186]
[1642606991542,0.00113685,3128.5,3127.9,1.69400186]
[1642606991741,0.00113685,3128.5,3128.0,0.00170527]
[1642606991940,0.00113685,3128.5,3128.0,0.88909092]
[1642606992144,0.00113685,3128.5,3128.0,0.00170527]
[1642606992349,0.00113685,3128.5,3128.1,0.00113684]
[1642606992547,0.00113685,3128.5,3128.0,0.00170527]
[1642606992745,0.00113685,3128.5,3128.1,0.79896]
[1642606992946,0.00113685,3128.5,3128.1,1.09896]
[1642606993160,0.00113685,3128.5,3128.1,0.3]
[1642606993551,0.00113685,3128.5,3128.0,0.78108127]
[1642606993750,0.1278,3129.5,3128.0,0.78108127]
[1642606993751,0.1278,3129.5,3128.5,6.05]
[1642606993952,3.2662,3129.9,3128.6,3.19813209]
[1642606993953,2.71762206,3129.4,3128.6,3.19813209]
[1642606994151,3.394,3129.9,3128.6,3.49813209]
[1642606994152,0.00170527,3128.8,3128.6,3.49813209]
[1642606994350,0.00170527,3128.8,3128.6,1.93637365]
[1642606994586,1.2674,3130.0,3128.6,1.92392131]
[1642606994587,0.00113685,3128.7,3128.6,1.92392131]
[1642606994988,0.00113685,3128.7,3128.6,6.84632131]
[1642606995187,0.00113685,3128.7,3128.6,25.94558591]
[1642606995388,0.00113685,3128.7,3128.6,27.0982646]
[1642606995587,0.00113685,3128.7,3128.6,8.4782646]
[1642606995787,0.00113685,3128.7,3128.6,2.3782646]
[1642606995988,0.00113685,3128.7,3128.6,1.899]
[1642606996189,0.00113685,3128.7,3128.6,0.708]
[1642606996390,0.00113685,3128.7,3128.6,1.8895]
[1642606996993,0.00113685,3128.7,3128.6,4.5395]
[1642606997192,0.00113685,3128.7,3128.6,1.8895]
[1642606997394,0.00113685,3128.7,3128.6,0.708]
[1642606997790,0.00113685,3128.7,3128.6,4.158]
[1642606998637,0.00113685,3128.7,3128.6,0.708]
[1642606999637,0.00113685,3128.7,3128.6,3.21527103]
[1642606999837,0.00113685,3128.7,3128.6,23.03657103]
[1642607000040,0.00113685,3128.7,3128.6,23.86286719]
[1642607000641,1.28304651,3128.7,3128.6,21.35559616]
[1642607000840,1.28304651,3128.7,3128.6,19.328]
[1642607000841,0.00113685,3128.7,3128.6,19.328]
[1642607001041,0.00113685,3128.7,3128.6,0.708]
[1642607001240,0.00113685,3128.7,3128.6,21.95891413]
[1642607001443,0.00113685,3128.7,3128.6,22.78852301]
[1642607001640,0.00113685,3128.7,3128.6,20.15760888]
[1642607002293,0.00113685,3128.7,3128.6,1.53760888]
[1642607002491,0.00113685,3128.7,3128.6,0.708]
[1642607002892,0.00113685,3128.7,3128.6,3.358]
[1642607003893,0.00113685,3128.7,3128.6,5.658]
[1642607004295,0.00113685,3128.7,3128.6,6.45679]
[1642607005597,0.00113685,3128.7,3128.6,7.90654534]
[1642607006033,0.00113685,3128.7,3128.6,26.52654534]
[1642607006237,0.00113685,3128.7,3128.6,27.35615422]
[1642607006533,0.00113685,3128.7,3128.6,6.43615422]
[1642607006733,0.00113685,3128.7,3128.6,4.19129753]
[1642607006933,0.00113685,3128.7,3128.6,22.81129753]
[1642607007134,0.00113685,3128.7,3128.6,5.02090641]
[1642607007434,0.00113685,3128.7,3128.6,3.39250753]
[1642607008441,0.00113685,3128.7,3128.6,4.22211641]
[1642607008939,0.00113685,3128.7,3128.6,3.39250753]
[1642607009593,0.00113685,3128.7,3128.6,22.01250753]
[1642607009792,0.00113685,3128.7,3128.6,3.39250753]
[1642607010397,0.00113685,3128.7,3128.6,22.01250753]
[1642607010695,0.00113685,3128.7,3128.6,23.8431656]
[1642607010895,0.00113685,3128.7,3128.6,24.25867161]
[1642607011094,0.00113685,3128.7,3128.6,25.25867161]
[1642607011293,0.00113685,3128.7,3128.6,24.25867161]
[1642607011693,0.00113685,3128.7,3128.6,25.25867161]
[1642607011895,0.00113685,3128.7,3128.6,24.25867161]
[1642607012095,0.00113685,3128.7,3128.6,25.25867161]
[1642607012501,0.00113685,3128.7,3128.6,24.25867161]
[1642607012698,0.00113685,3128.7,3128.6,22.8431656]
[1642607013101,0.1278,3130.4,3128.7,6.0508]
[1642607013340,2.71684597,3130.3,3129.1,18.65708088]
[1642607013539,0.00511581,3129.6,3129.3,18.65315974]
[1642607013741,0.00511581,3129.6,3129.4,0.458]
[1642607013942,1.16972316,3129.7,3129.5,5.46185556]
[1642607014240,1.16972316,3129.7,3129.6,4.058]
[1642607014439,1.16972316,3129.7,3129.6,4.09341361]
[1642607014639,0.00568423,3129.7,3129.6,4.09341361]
[1642607015239,0.00568423,3129.7,3129.6,6.71551513]
[1642607015740,0.00568423,3129.7,3129.6,4.09341361]
[1642607016239,0.00568423,3129.7,3129.6,4.058]
[1642607016441,0.99781174,3129.9,3129.6,0.458]
[1642607016841,2.70037444,3129.8,3128.9,0.458]
[1642607017089,2.70037444,3129.8,3128.7,0.04064872]
[1642607017090,2.70037444,3129.8,3128.7,2.69015844]
[1642607017091,2.82817444,3129.8,3128.7,2.69015844]
[1642607017287,2.70037444,3129.7,3129.0,0.00397896]
[1642607017488,2.70037444,3129.7,3128.8,0.00511581]
[1642607017688,1.52378746,3129.2,3128.8,0.00511581]
[1642607018093,0.1278,3129.1,3128.8,0.00511581]
[1642607018291,1.82378746,3129.2,3128.8,0.00511581]
[1642607018490,0.1278,3129.1,3128.8,0.00511581]
[1642607018891,1.44235636,3129.0,3128.8,0.00511581]
[1642607019091,1.74235636,3129.0,3128.8,0.00511581]
[1642607019694,1.44235636,3129.0,3128.8,0.00511581]
[1642607020935,1.74235636,3129.0,3128.8,0.00511581]
[1642607022443,1.44235636,3129.0,3128.8,0.00511581]
[1642607024512,1.74235636,3129.0,3128.8,0.00511581]
[1642607025312,1.44235636,3129.0,3128.8,0.00511581]
[1642607025513,1.74235636,3129.0,3128.8,0.00511581]
[1642607025713,4.8278,3128.9,3128.8,0.00511581]
[1642607026112,5.8278,3128.9,3128.8,0.00511581]
[1642607026312,4.8278,3128.9,3128.8,0.00511581]
[1642607026713,1.1278,3128.9,3128.8,0.00511581]
[1642607027712,0.1278,3128.9,3128.8,0.00511581]
[1642607027913,1.1278,3128.9,3128.8,0.00511581]
[1642607028741,1.0,3128.9,3128.8,0.00511581]
[1642607029142,1.57015636,3129.0,3128.8,0.00511581]
[1642607029343,1.44235636,3129.0,3128.8,0.00511581]
[1642607030346,1.74235636,3129.0,3128.8,0.00511581]
[1642607030546,1.44235636,3129.0,3128.8,0.00511581]
[1642607034000,1.74235636,3129.0,3128.8,0.00511581]
[1642607034698,1.44235636,3129.0,3128.8,0.00511581]
[1642607036858,1.2916,3129.7,3128.8,0.00511581]
[1642607037055,2.71728555,3129.6,3128.8,0.00511581]
[1642607037458,1.34210495,3129.4,3128.8,1.43884128]
[1642607037656,2.71728555,3129.3,3128.8,1.43884128]
[1642607037855,2.71728555,3129.3,3128.9,0.00454738]
[1642607037856,3.01728555,3129.3,3128.9,0.00454738]
[1642607038057,0.3,3129.3,3128.9,0.00454738]
[1642607038255,0.3,3129.3,3128.8,0.00511581]
[1642607038457,1.64210495,3129.4,3128.8,0.00511581]
[1642607038657,0.3,3129.4,3128.8,0.00511581]
[1642607038856,1.51718512,3129.2,3128.9,0.4792839]
[1642607039061,1.51718512,3129.2,3129.0,0.3]
[1642607039356,1.51718512,3129.2,3129.1,0.00341054]
[1642607040092,1.1638,3129.7,3129.1,0.00341054]
[1642607040290,2.717186,3129.6,3129.1,0.00341054]
[1642607040696,2.81625,3130.1,3129.1,0.00341054]
[1642607040697,2.717186,3129.5,3129.1,0.00341054]
[1642607040896,4.18815,3130.1,3129.1,0.00341054]
[1642607041096,1.10141119,3129.3,3129.1,0.00341054]
[1642607041498,1.10141119,3129.3,3129.0,0.30397896]
[1642607041900,1.10141119,3129.3,3129.1,0.00341054]
[1642607042096,0.79886,3129.8,3129.1,0.46141054]
[1642607042298,2.71716276,3129.7,3129.2,3.26131213]
[1642607042499,0.00113685,3129.9,3129.3,0.458]
[1642607042698,0.00113685,3129.9,3129.4,2.72850747]
[1642607042898,0.00113685,3129.9,3129.5,0.458]
[1642607043098,0.00113685,3129.9,3129.6,2.66533798]
[1642607043347,0.00113685,3129.9,3129.7,0.458]
[1642607043544,0.00113685,3129.9,3129.7,0.49766205]
[1642607043744,0.00113685,3129.9,3129.8,2.50205473]
[1642607043945,0.00113685,3129.9,3129.8,0.458]
[1642607044148,2.84608471,3129.9,3129.8,0.458]
[1642607044349,2.84608471,3129.9,3129.5,0.00113684]
[1642607044548,2.71703875,3129.8,3129.5,0.00113684]
[1642607044748,0.00113685,3129.9,3129.1,0.00341054]
[1642607044749,2.71703875,3129.7,3129.1,0.00341054]
[1642607044946,1.47020883,3129.2,3129.1,0.00341054]
[1642607045549,1.77020883,3129.2,3129.1,0.00341054]
[1642607045749,2.6,3129.1,3128.7,0.0008]
[1642607045949,2.6,3129.1,3128.8,0.00511581]
[1642607045950,2.7278,3129.1,3128.8,0.00511581]
[1642607046148,3.71442714,3129.0,3128.8,0.00511581]
[1642607046448,3.95851063,3128.9,3128.8,0.00511581]
[1642607046648,1.37242894,3128.9,3128.8,0.00511581]
[1642607047605,1.47020883,3129.2,3128.8,0.00511581]
[1642607048004,1.77020883,3129.2,3128.8,0.00511581]
[1642607048811,1.0879261,3129.0,3128.8,0.00511581]
[1642607049011,1.3879261,3129.0,3128.8,0.00511581]
[1642607049211,0.3,3129.0,3128.8,0.00511581]
[1642607049611,1.77020883,3129.2,3128.8,0.00511581]
[1642607050211,1.44968469,3129.0,3128.8,0.00511581]
[1642607050838,1.74968469,3129.0,3128.8,0.00511581]
[1642607051039,1.77020883,3129.2,3128.8,0.00511581]
[1642607051040,1.47020883,3129.2,3128.8,0.00511581]
[1642607051241,1.47020883,3129.2,3128.9,0.458]
[1642607051440,1.77020883,3129.2,3128.9,0.458]
[1642607051641,1.77020883,3129.2,3128.9,0.758]
[1642607052339,0.1278,3129.8,3128.9,0.758]
[1642607052340,0.1278,3129.8,3129.0,2.49877065]
[1642607052544,2.71719579,3129.7,3129.0,0.458]
[1642607052744,2.71719579,3129.6,3129.0,0.49226269]
[1642607052944,0.00284212,3129.6,3129.0,0.49226269]
[1642607053144,0.0022737,3129.5,3129.0,0.458]
[1642607053544,0.00170527,3129.4,3129.0,0.458]
[1642607053946,0.00113685,3129.3,3129.0,0.458]
[1642607054350,1.31335153,3129.4,3129.0,3.02039043]
[1642607054598,1.31335153,3129.4,3129.0,0.49365887]
[1642607054893,1.31335153,3129.4,3129.0,3.08709867]
[1642607054894,0.00113685,3129.3,3129.0,3.08709867]
[1642607055094,0.00113685,3129.3,3129.0,3.0514398]
[1642607055296,0.00113685,3129.3,3129.0,0.458]
[1642607056393,2.79980979,3129.4,3129.0,0.458]
[1642607056597,2.79980979,3129.4,3129.1,0.00113685]
[1642607056997,1.57109109,3129.4,3129.1,0.00113685]
[1642607057202,1.31164626,3129.4,3129.1,0.48041035]
[1642607057599,1.31164626,3129.4,3129.2,0.3]
[1642607057998,1.31164626,3129.4,3129.1,0.00113685]
[1642607058246,1.61164626,3129.4,3129.1,0.00113685]
[1642607058843,1.31164626,3129.4,3129.1,0.00113685]
[1642607059544,1.28132273,3129.3,3129.1,0.00113685]
[1642607060747,1.31164626,3129.4,3129.1,0.00113685]
[1642607060951,1.31164626,3129.4,3129.0,0.74153024]
[1642607061349,1.31164626,3129.4,3129.0,0.70913685]
[1642607062093,1.23950018,3129.3,3129.0,0.70913685]
[1642607063197,1.31164626,3129.4,3129.0,0.70913685]
[1642607063399,0.1278,3130.0,3129.1,2.50400603]
[1642607063600,1.2432,3130.3,3129.2,0.458]
[1642607063601,2.63651999,3129.9,3129.2,0.458]
[1642607063797,2.63651999,3129.9,3129.2,0.758]
[1642607063798,0.00454739,3129.9,3129.2,0.758]
[1642607063998,0.00454739,3129.9,3129.2,0.79158181]
[1642607064199,0.00454739,3129.9,3129.2,0.758]
[1642607064599,0.00454739,3129.9,3129.2,0.79309836]
[1642607064799,0.00454739,3129.9,3129.2,0.758]
[1642607065002,0.00454739,3129.9,3129.2,1.2372323]
[1642607065204,1.35635864,3129.6,3129.2,1.27223254]
[1642607065602,1.35635864,3129.6,3129.2,1.26959197]
[1642607065603,0.0022737,3129.5,3129.2,1.26959197]
[1642607066045,1.35635864,3129.6,3129.2,2.06830197]
[1642607066046,0.00170527,3129.4,3129.2,2.06830197]
[1642607066248,0.00170527,3129.4,3129.2,0.79035967]
[1642607066445,1.35635864,3129.6,3129.2,0.79035967]
[1642607066446,0.00113685,3129.3,3129.2,0.79035967]
[1642607067952,0.00113685,3129.3,3129.2,3.61534857]
[1642607068151,0.00113685,3129.3,3129.2,7.70208304]
[1642607068349,0.00113685,3129.3,3129.2,3.61534857]
[1642607068553,0.00113685,3129.3,3129.2,0.79035967]
[1642607069051,0.00113685,3129.3,3129.2,4.24035967]
[1642607069250,0.00113685,3129.3,3129.2,0.79035967]
[1642607069692,0.00113685,3129.3,3129.2,0.758]
[1642607070099,0.00113685,3129.3,3129.2,0.79395067]
[1642607070292,0.00113685,3129.3,3129.2,0.758]
[1642607070898,0.00113685,3129.3,3129.2,0.78964511]
[1642607071096,0.00113685,3129.3,3129.2,4.258]
[1642607071298,0.00113685,3129.3,3129.2,4.29167824]
[1642607074446,0.00113685,3129.3,3129.2,3.99167824]
[1642607074647,0.00113685,3129.3,3129.2,3.958]
[1642607075846,0.00113685,3129.3,3129.2,4.258]
[1642607076650,0.00113685,3129.3,3129.2,5.14473447]
[1642607078805,0.00113685,3129.3,3129.2,22.878]
[1642607079006,0.00113685,3129.3,3129.2,23.76473447]
[1642607079203,0.00113685,3129.3,3129.2,24.76473447]
[1642607080004,0.00113685,3129.3,3129.2,6.14473447]
[1642607080204,0.00113685,3129.3,3129.2,5.258]
[1642607083551,0.00113685,3129.3,3129.2,5.29526095]
[1642607083751,0.00113685,3129.3,3129.2,5.258]
[1642607083951,0.00113685,3129.3,3129.2,5.29763998]
[1642607084151,0.00113685,3129.3,3129.2,5.258]
[1642607084351,0.00113685,3129.3,3129.2,5.29384003]
[1642607084599,0.00113685,3129.3,3129.2,5.258]
[1642607084804,0.00113685,3129.3,3129.2,5.29043784]
[1642607085606,0.00113685,3129.3,3129.2,0.79043784]
[1642607085804,0.00113685,3129.3,3129.2,0.458]
[1642607086002,0.00113685,3129.3,3128.9,1.1561]
[1642607086806,1.2377073,3129.0,3128.9,1.1561]
[1642607087005,1.5197318,3129.1,3128.9,1.1561]
[1642607087208,0.00113685,3129.3,3128.9,0.00113684]
[1642607087506,0.00113685,3129.3,3128.8,0.00170527]
[1642607088349,1.26847795,3129.0,3128.8,0.00170527]
[1642607089554,1.35854206,3128.9,3128.8,0.00170527]
[1642607091255,1.48634206,3128.9,3128.8,0.00170527]
[1642607091457,4.05081202,3128.9,3128.8,0.00170527]
[1642607091656,4.05081202,3128.9,3128.7,0.0008]
[1642607091657,6.05,3128.8,3128.7,0.0008]
[1642607091854,8.74226996,3128.8,3128.7,0.0008]
[1642607092721,9.54151996,3128.8,3128.7,0.0008]
[1642607093323,9.41371996,3128.8,3128.7,0.0008]
[1642607096752,6.84925,3128.8,3128.7,0.0008]
[1642607097153,10.70558782,3128.8,3128.7,0.0008]
[1642607097557,8.14925,3128.8,3128.7,0.0008]
[1642607097757,6.84925,3128.8,3128.7,0.0008]
[1642607098158,9.4029934,3128.8,3128.7,0.0008]
[1642607098359,6.84925,3128.8,3128.7,0.0008]
[1642607098664,9.40195196,3128.8,3128.7,0.0008]
[1642607099057,9.70195196,3128.8,3128.7,0.0008]
[1642607099258,10.70195196,3128.8,3128.7,0.0008]
[1642607099503,9.70195196,3128.8,3128.7,0.0008]
[1642607099904,9.40195196,3128.8,3128.7,0.0008]
[1642607100305,9.86164196,3128.8,3128.7,0.0008]
[1642607100505,10.86164196,3128.8,3128.7,0.0008]
[1642607100906,11.12294196,3128.8,3128.7,0.0008]
[1642607101107,6.05,3128.7,3127.3,0.3]
[1642607101315,6.05,3128.7,3127.1,0.3]
[1642607101316,2.71239196,3128.6,3127.1,0.3]
[1642607101508,6.05,3128.7,3127.4,0.00795793]
[1642607101808,1.29578969,3127.7,3127.4,0.00795793]
[1642607102206,1.29578969,3127.7,3127.3,0.00852635]
[1642607102407,0.1278,3128.6,3127.3,0.00852635]
[1642607102608,0.1278,3128.4,3127.3,0.30852635]
[1642607102810,6.05,3128.7,3127.4,0.458]
[1642607103010,8.73935844,3128.7,3127.4,0.48910505]
[1642607103251,8.73935844,3128.7,3127.5,0.0073895]
[1642607103252,1.59847,3128.5,3127.5,0.0073895]
[1642607103455,1.42317405,3127.8,3127.5,0.0073895]
[1642607103859,1.42317405,3127.8,3127.3,0.00852635]
[1642607105056,1.54059623,3127.7,3127.3,0.00852635]
[1642607105257,0.1278,3128.6,3127.3,0.00852635]
[1642607105459,6.05,3128.7,3127.4,0.458]
[1642607105460,0.1278,3128.7,3127.4,0.458]
[1642607105757,1.2319,3128.8,3127.5,0.0073895]
[1642607105957,1.2319,3128.8,3127.6,0.458]
[1642607106156,1.2319,3128.8,3127.6,1.94526585]
[1642607106157,1.15889603,3128.2,3127.6,1.94526585]
[1642607106360,1.15889603,3128.2,3127.7,0.00625266]
[1642607106557,1.15889603,3128.2,3127.8,0.458]
[1642607107005,1.15889603,3128.2,3127.9,0.00511581]
[1642607107205,1.15889603,3128.2,3127.9,0.46311581]
[1642607107607,1.42930303,3128.4,3128.0,0.00454739]
[1642607107806,1.42930303,3128.4,3128.0,0.46254739]
[1642607108206,1.42930303,3128.4,3128.1,0.00397896]
[1642607109208,0.74229675,3128.2,3128.1,0.00397896]
[1642607109409,1.13523004,3127.8,3127.6,0.46482108]
[1642607109608,1.13523004,3127.8,3127.7,4.40625266]
[1642607109810,1.4845935,3128.2,3127.7,4.70625266]
[1642607110008,1.4845935,3128.2,3127.7,4.74379693]
[1642607110208,1.4845935,3128.2,3127.8,0.00568423]
[1642607111055,1.4845935,3128.2,3127.9,1.10728223]
[1642607111256,7.7614992,3129.7,3127.9,1.10728223]
[1642607111257,0.1278,3129.0,3128.1,5.73587126]
[1642607111458,0.1278,3129.0,3128.2,3.18282965]
[1642607111657,0.1278,3129.0,3128.2,8.87594019]
[1642607111658,0.00113685,3129.0,3128.2,8.87594019]
[1642607111855,0.00113685,3129.0,3128.3,0.00284212]
[1642607112055,0.00113685,3129.0,3128.4,0.458]
[1642607112254,0.00113685,3129.0,3128.4,0.4918757]
[1642607112453,0.00113685,3129.0,3128.5,0.00170527]
[1642607112653,0.00113685,3129.0,3128.5,0.49483775]
[1642607113056,0.00113685,3129.0,3128.6,0.00113684]
[1642607113258,1.2382458,3128.8,3128.6,0.00113684]
[1642607113656,0.00113685,3129.0,3128.6,0.00113684]
[1642607114058,0.00113685,3129.0,3128.7,0.458]
[1642607114523,0.00113685,3129.0,3128.7,0.79616188]
[1642607114710,0.00113685,3129.0,3128.7,0.49616188]
[1642607114913,0.00113685,3129.0,3128.7,0.458]
[1642607115118,1.3250638,3128.8,3128.7,0.458]
[1642607115318,1.3250638,3128.8,3128.6,0.00113684]
[1642607115715,1.3250638,3128.8,3128.2,0.00341054]
[1642607115917,1.15633269,3128.3,3128.2,0.00341054]
[1642607116417,1.15633269,3128.3,3127.9,0.00511581]
[1642607116820,1.15633269,3128.3,3127.8,0.00568423]
[1642607117018,1.15633269,3128.3,3127.6,3.28360392]
[1642607117019,1.15633269,3128.3,3127.9,0.00511581]
[1642607117219,1.15633269,3128.3,3127.7,0.00625266]
[1642607118117,1.1621,3128.7,3127.7,0.00625266]
[1642607118356,1.3250638,3128.8,3128.3,1.30437068]
[1642607118556,0.00113685,3129.0,3128.3,0.33788857]
[1642607118755,0.00113685,3129.0,3128.4,0.00227369]
[1642607119155,0.00113685,3129.0,3128.4,0.30227369]
[1642607119358,0.00113685,3129.0,3128.4,0.3]
[1642607119556,0.00113685,3129.0,3128.5,1.43402589]
[1642607119756,0.00113685,3129.0,3128.6,1.13404352]
[1642607120057,0.00113685,3129.0,3128.7,3.0076411]
[1642607120257,0.00113685,3129.0,3128.8,0.458]
[1642607120457,0.00113685,3129.0,3128.8,0.49156823]
[1642607121658,0.00113685,3129.0,3128.9,8.72594362]
[1642607121862,0.00113685,3129.0,3128.9,28.84372985]
[1642607122103,0.00113685,3129.0,3128.9,29.27958739]
[1642607122304,0.1278,3130.6,3129.3,0.7986]
[1642607122504,2.49513766,3130.5,3129.4,0.89385139]
[1642607122703,0.00625266,3130.1,3129.9,2.33186891]
[1642607122903,0.00625266,3130.1,3129.9,3.80170669]
[1642607123106,0.00568423,3130.0,3129.9,3.80170669]
[1642607123309,0.00568423,3130.0,3129.9,2.58000142]
[1642607123507,0.00795793,3130.0,3129.9,2.58000142]
[1642607123708,0.00795793,3130.0,3129.9,2.54786364]
[1642607123907,0.00795793,3130.0,3129.9,0.3]
[1642607124108,0.00795793,3130.0,3129.9,1.09859]
[1642607124414,0.00795793,3130.0,3129.8,0.3]
[1642607124609,0.00795793,3130.0,3129.6,0.49727397]
[1642607124809,0.00511581,3129.9,3129.6,0.458]
[1642607125009,0.00511581,3129.9,3129.4,0.03243971]
[1642607125212,0.00454739,3129.8,3129.2,0.458]
[1642607125609,1.46703309,3130.1,3129.2,0.458]
[1642607125610,0.00397896,3129.7,3129.2,0.97035397]
[1642607125881,0.00397896,3129.7,3129.3,2.81179522]
[1642607126066,0.00341054,3129.6,3129.5,1.21357852]
[1642607126266,0.00341054,3129.6,3129.5,2.0422789]
[1642607126468,0.00341054,3129.6,3129.5,5.4422789]
[1642607126866,0.00341054,3129.6,3129.5,7.93467248]
[1642607127072,0.00341054,3129.6,3129.5,9.3197241]
[1642607128072,0.00341054,3129.6,3129.5,9.7777241]
[1642607128472,2.49529747,3130.5,3129.6,6.08361485]
[1642607128673,2.49529747,3130.4,3129.9,0.79857]
[1642607128872,0.00454739,3130.4,3129.9,1.13773916]
[1642607129271,0.00454739,3130.4,3130.0,1.37575002]
[1642607129503,0.00454739,3130.4,3130.1,0.0319718]
[1642607129703,0.00454739,3130.4,3130.1,0.79853]
[1642607129900,0.00454739,3130.4,3130.2,0.33438921]
[1642607130507,0.00454739,3130.4,3130.2,1.19248921]
[1642607130706,0.00454739,3130.4,3130.2,1.65048921]
[1642607131106,0.00454739,3130.4,3130.2,1.19248921]
[1642607132709,0.00454739,3130.4,3130.2,0.3]
[1642607133109,0.00454739,3130.4,3130.0,4.7833802]
[1642607133552,0.00454739,3130.4,3130.1,1.49591582]
[1642607133751,0.00454739,3130.4,3130.1,1.41431582]
[1642607134152,0.00454739,3130.4,3130.1,21.03431582]
[1642607134353,0.00454739,3130.4,3130.1,22.93121582]
[1642607134554,0.00454739,3130.4,3130.2,0.43581705]
[1642607134751,0.00454739,3130.4,3130.3,6.508]
[1642607135151,0.00454739,3130.4,3130.3,7.54342165]
[1642607135356,0.00454739,3130.4,3130.3,6.54342165]
[1642607135556,0.00454739,3130.4,3130.3,7.54342165]
[1642607137506,0.00454739,3130.4,3130.3,10.16811231]
[1642607139307,0.00454739,3130.4,3130.3,0.49342165]
[1642607139511,0.00454739,3130.4,3130.2,3.77747283]
[1642607139708,0.00454739,3130.4,3130.1,3.73137004]
[1642607139908,0.00397896,3130.3,3130.0,4.4864229]
[1642607140113,0.00397896,3130.3,3129.8,3.65213021]
[1642607140307,0.00875111,3130.4,3129.8,3.65213021]
[1642607140308,0.00341054,3130.2,3129.8,3.65213021]
[1642607140749,0.00284212,3130.1,3129.6,4.45889604]
[1642607140951,0.00284212,3130.1,3129.9,1.42699667]
[1642607141251,0.00875111,3130.4,3129.9,1.46429104]
[1642607141252,0.00227369,3130.0,3129.9,1.46429104]
[1642607141656,0.00227369,3130.0,3129.9,4.14023466]
[1642607141855,0.00227369,3130.0,3129.9,1.92229104]
[1642607142252,0.00227369,3130.0,3129.9,7.77229104]
[1642607142655,0.00227369,3130.0,3129.9,9.07229104]
[1642607143655,0.00227369,3130.0,3129.9,9.54778859]
[1642607143858,0.00227369,3130.0,3129.9,12.13562619]
[1642607144055,0.00227369,3130.0,3129.9,11.13562619]
[1642607144898,0.00227369,3130.0,3129.9,8.54778859]
[1642607145302,0.00227369,3130.0,3129.9,8.68360875]
[1642607145703,0.00227369,3130.0,3129.9,8.54778859]
[1642607145902,0.00227369,3130.0,3129.9,2.69778859]
[1642607146104,0.00227369,3130.0,3129.9,0.758]
[1642607146305,0.00227369,3130.0,3129.9,0.3385053]
[1642607146503,0.00227369,3130.0,3129.5,1.71027094]
[1642607146905,0.00170527,3129.9,3129.5,1.71027094]
[1642607147303,0.00113685,3129.8,3129.5,1.71027094]
[1642607147705,0.00397896,3130.3,3129.7,1.29049731]
[1642607147909,0.00397896,3130.3,3129.7,1.59049731]
[1642607148107,0.02127817,3130.4,3129.7,1.59049731]
[1642607148108,0.00341054,3130.2,3129.7,1.59049731]
[1642607148552,1.08710742,3130.0,3129.7,0.3]
[1642607148754,1.08710742,3130.0,3129.4,0.458]
[1642607148955,0.00170527,3129.9,3128.9,0.458]
[1642607149155,0.00170527,3129.9,3129.0,0.13585158]
[1642607149156,0.92846527,3129.9,3129.0,0.13585158]
[1642607149355,0.00113685,3129.8,3129.0,0.00341054]
[1642607149555,0.00113685,3129.8,3129.1,0.00284212]
[1642607149556,0.1278,3129.7,3129.1,0.00284212]
[1642607149752,1.42004588,3129.6,3129.0,1.2697821]
[1642607149952,0.1278,3129.5,3129.0,1.2697821]
[1642607150153,0.1278,3129.5,3129.1,0.00284212]
[1642607150757,0.7990033,3129.4,3129.1,0.00284212]
[1642607150955,1.42004588,3129.6,3128.6,0.14155419]
[1642607151153,1.42004588,3129.6,3128.7,0.14098577]
[1642607151357,1.42004588,3129.6,3128.7,0.00511581]
[1642607151554,1.42004588,3129.6,3128.8,1.4906462]
[1642607151754,1.42004588,3129.6,3128.8,1.35023003]
[1642607152019,1.42004588,3129.6,3128.9,0.13984375]
[1642607152209,0.7989378,3129.7,3129.0,0.13586479]
[1642607152408,0.7989378,3129.7,3129.0,0.13927533]
[1642607152608,0.7989378,3129.7,3129.1,0.00284212]
[1642607153009,0.7989378,3129.7,3128.9,0.13983981]
[1642607153217,0.7989378,3129.7,3129.0,0.13927139]
[1642607153411,0.7989378,3129.7,3129.0,0.00341054]
[1642607153412,1.19732875,3129.6,3129.0,0.00341054]
[1642607153611,1.19732875,3129.6,3128.8,1.35023003]
[1642607153612,1.99634875,3129.6,3129.1,0.00284212]
[1642607153813,1.99634875,3129.6,3128.9,0.00397896]
[1642607154012,2.89354115,3129.5,3129.0,0.00341054]
[1642607154215,2.89354115,3129.5,3128.9,0.00397896]
[1642607154414,0.7990669,3129.3,3128.6,0.00568423]
[1642607154614,0.7990669,3129.3,3128.2,7.4222]
[1642607154615,0.79912,3129.2,3128.7,0.14098816]
[1642607154815,0.79912,3129.2,3128.6,0.00568423]
[1642607155014,0.79912,3129.2,3128.8,0.00454739]
[1642607155214,0.79912,3129.2,3128.7,2.4346752]